bitfinex/quotes_BTCUSD_20250908
["timestamp","ask_amount","ask_price","bid_price","bid_amount"]
[1757368615922,0.10496217,112260.0,112250.0,0.51658161]
[1757368622902,0.10496217,112260.0,112250.0,0.36786161]
[1757368623116,0.10496217,112260.0,112250.0,0.51646161]
[1757368636247,0.10496217,112260.0,112250.0,0.36786161]
[1757368636450,0.10496217,112260.0,112250.0,0.51630161]
[1757368723875,0.01304618,112260.0,112250.0,0.51630161]
[1757368724506,0.16652813,112290.0,112270.0,0.17814197]
[1757368724682,0.09191599,112280.0,112270.0,0.17828065]
[1757368724866,0.09332254,112280.0,112270.0,0.40211742]
[1757368725064,0.09332254,112280.0,112270.0,0.39989065]
[1757368725272,0.09191599,112280.0,112270.0,0.39989065]
[1757368725672,0.09191599,112280.0,112270.0,0.42662094]
[1757368726072,0.09391599,112280.0,112270.0,0.42662094]
[1757368726992,0.09391599,112280.0,112270.0,0.50662094]
[1757368727359,0.09591599,112280.0,112270.0,0.50662094]
[1757368728166,0.09391599,112280.0,112270.0,0.50662094]
[1757368728370,0.09191599,112280.0,112270.0,0.50662094]
[1757368728611,0.09291599,112280.0,112270.0,0.51542421]
[1757368728933,0.09191599,112280.0,112270.0,0.51542421]
[1757368729196,0.09291599,112280.0,112270.0,0.51542421]
[1757368763614,0.001,112280.0,112270.0,0.51542421]
[1757368765680,0.001,112280.0,112270.0,0.85542421]
[1757368765855,0.001,112280.0,112270.0,0.93513516]
[1757368766062,0.001,112280.0,112270.0,1.33513516]
[1757368766278,0.001,112280.0,112270.0,0.93513516]
[1757368766873,0.001,112280.0,112270.0,1.33513516]
[1757368772419,0.001,112280.0,112270.0,1.42705115]
[1757368772670,0.001,112280.0,112270.0,1.57705115]
[1757368772891,0.00077868,112320.0,112310.0,0.17807853]
[1757368773114,0.00077868,112320.0,112310.0,0.39690451]
[1757368773115,0.09269467,112320.0,112310.0,0.39690451]
[1757368773321,0.09269467,112320.0,112310.0,0.39998853]
[1757368773587,0.09269467,112320.0,112310.0,0.4267101]
[1757368774206,0.0931571,112320.0,112310.0,0.4267101]
[1757368774617,0.0951571,112320.0,112310.0,0.4267101]
[1757368775852,0.0971571,112320.0,112310.0,0.4267101]
[1757368776264,0.0951571,112320.0,112310.0,0.4267101]
[1757368776470,0.0961571,112320.0,112310.0,0.4267101]
[1757368780159,0.0961571,112320.0,112310.0,0.43567214]
[1757368783486,0.0961571,112320.0,112310.0,0.43036214]
[1757368783689,0.0961571,112320.0,112310.0,0.4214001]
[1757368785041,0.0961571,112320.0,112310.0,0.43018336]
[1757368788578,0.0961571,112320.0,112310.0,0.43519336]
[1757368792357,0.0961571,112320.0,112310.0,0.51519336]
[1757368798732,0.09537842,112320.0,112310.0,0.51519336]
[1757368801190,0.00346243,112320.0,112310.0,0.51519336]
[1757368802036,0.00246243,112320.0,112310.0,0.51511336]
[1757368802262,0.00346243,112320.0,112310.0,0.51511336]
[1757368803161,0.00146243,112320.0,112310.0,0.51511336]
[1757368803412,0.00246243,112320.0,112310.0,0.51511336]
[1757368805431,0.00146243,112320.0,112310.0,0.51511336]
[1757368805658,0.00146243,112320.0,112310.0,0.85511336]
[1757368806138,0.00046243,112320.0,112310.0,0.85511336]
[1757368806572,0.00046243,112320.0,112310.0,1.25511336]
[1757368806798,0.00046243,112320.0,112310.0,1.34702935]
[1757368807012,0.00046243,112320.0,112310.0,1.54207817]
[1757368807013,1e-08,112320.0,112310.0,1.54207817]
[1757368807215,1e-08,112320.0,112310.0,1.62178912]
[1757368807426,1e-08,112320.0,112310.0,1.62168973]
[1757368807832,1e-08,112320.0,112310.0,1.47352973]
[1757368808254,1e-08,112320.0,112310.0,1.62268973]
[1757368810009,1e-08,112320.0,112310.0,1.62368973]
[1757368810589,1e-08,112320.0,112310.0,1.47552973]
[1757368810863,1e-08,112320.0,112310.0,1.62368973]
[1757368811533,1e-08,112320.0,112310.0,1.67368973]
[1757368812277,1e-08,112320.0,112310.0,1.52552973]
[1757368812481,1e-08,112320.0,112310.0,1.67364973]
[1757368813510,1e-08,112330.0,112320.0,0.53900149]
[1757368813742,1e-08,112330.0,112320.0,1.00605748]
[1757368813972,1e-08,112330.0,112320.0,1.00804748]
[1757368814180,1e-08,112330.0,112320.0,1.45804748]
[1757368814399,1e-08,112330.0,112320.0,1.53765904]
[1757368814849,1e-08,112330.0,112320.0,1.53865904]
[1757368815056,1e-08,112330.0,112320.0,1.58227173]
[1757368815272,1e-08,112330.0,112320.0,1.63227173]
[1757368816167,1e-08,112330.0,112320.0,1.63127173]
[1757368816618,1e-08,112330.0,112320.0,1.63327173]
[1757368817426,1e-08,112330.0,112320.0,1.63683241]
[1757368818459,1e-08,112330.0,112320.0,1.55722085]
[1757368825182,1e-08,112330.0,112320.0,1.55718085]
[1757368825609,1e-08,112330.0,112320.0,1.40910085]
[1757368825862,1e-08,112330.0,112320.0,1.55718085]
[1757368826889,1e-08,112330.0,112320.0,1.40910085]
[1757368827388,1e-08,112330.0,112320.0,1.55718085]
[1757368830059,1e-08,112330.0,112320.0,1.40910085]
[1757368830286,1e-08,112330.0,112320.0,1.50722085]
[1757368833856,1e-08,112330.0,112320.0,1.58683241]
[1757368834326,1e-08,112330.0,112320.0,1.43871241]
[1757368834553,1e-08,112330.0,112320.0,1.58691241]
[1757368835259,1e-08,112330.0,112320.0,1.84315241]
[1757368838425,1e-08,112330.0,112320.0,1.84327241]
[1757368840755,1e-08,112330.0,112320.0,1.76366085]
[1757368842618,1e-08,112330.0,112320.0,1.87525618]
[1757368843119,1e-08,112330.0,112320.0,1.72693618]
[1757368843369,1e-08,112330.0,112320.0,1.87521618]
[1757368844058,1e-08,112330.0,112320.0,1.52136618]
[1757368844320,1e-08,112330.0,112320.0,1.749237]
[1757368844581,1e-08,112330.0,112320.0,1.61670285]
[1757368846091,1e-08,112330.0,112320.0,1.46846285]
[1757368846321,1e-08,112330.0,112320.0,1.61670285]
[1757368848777,1e-08,112330.0,112320.0,1.46846285]
[1757368848984,1e-08,112330.0,112320.0,1.61666285]
[1757368849818,1e-08,112330.0,112320.0,1.30822686]
[1757368850036,1e-08,112330.0,112320.0,0.91630335]
[1757368850247,1e-08,112330.0,112320.0,1.40450335]
[1757368850453,1e-08,112330.0,112320.0,1.06450335]
[1757368850858,1e-08,112330.0,112320.0,0.91630335]
[1757368851040,1e-08,112330.0,112320.0,1.40450335]
[1757368856398,1e-08,112330.0,112320.0,1.40446335]
[1757368859179,1e-08,112330.0,112320.0,1.25630335]
[1757368859389,1e-08,112330.0,112320.0,1.40442335]
[1757368861165,1e-08,112330.0,112320.0,1.25630335]
[1757368861388,1e-08,112330.0,112320.0,1.40442335]
[1757368864590,1e-08,112330.0,112320.0,1.42536217]
[1757368864807,1e-08,112330.0,112320.0,1.54030816]
[1757368865018,8.069e-05,112360.0,112350.0,0.17801513]
[1757368865256,0.09199668,112360.0,112350.0,0.61024031]
[1757368865471,0.09199668,112360.0,112350.0,0.61016513]
[1757368865686,0.09199668,112360.0,112350.0,0.61331513]
[1757368865895,0.09199668,112360.0,112350.0,1.01331513]
[1757368866317,0.09299668,112360.0,112350.0,1.01331513]
[1757368866978,0.09499668,112360.0,112350.0,1.01331513]
[1757368868698,0.00308069,112360.0,112350.0,1.01331513]
[1757368869147,0.00308069,112360.0,112350.0,1.04002167]
[1757368878013,0.00308069,112360.0,112350.0,1.38002167]
[1757368890773,0.00308069,112360.0,112350.0,1.62193766]
[1757368891034,0.00308069,112360.0,112350.0,1.76370546]
[1757368891271,0.00308069,112360.0,112350.0,1.80281405]
[1757368891505,1e-08,112360.0,112350.0,1.82375287]
[1757368891732,1e-08,112360.0,112350.0,1.7935804]
[1757368891969,1e-08,112360.0,112350.0,1.68198507]
[1757368892212,1e-08,112360.0,112350.0,1.58190843]
[1757368892448,1e-08,112360.0,112350.0,1.63190843]
[1757368892691,1e-08,112360.0,112350.0,1.74602506]
[1757368893177,1e-08,112360.0,112350.0,1.70600222]
[1757368893411,0.0002,112380.0,112370.0,0.51798344]
[1757368893645,0.00033856,112380.0,112370.0,0.33186344]
[1757368893871,0.00033856,112380.0,112370.0,0.33684344]
[1757368894071,0.00033856,112380.0,112370.0,0.76354401]
[1757368894894,0.00033856,112380.0,112370.0,1.10654401]
[1757368895320,0.00033856,112380.0,112370.0,1.10854401]
[1757368895558,0.00033856,112380.0,112370.0,1.25854401]
[1757368899483,0.00033856,112380.0,112370.0,1.37439]
[1757368902130,0.00033856,112380.0,112370.0,1.63055]
[1757368904207,0.23966692,112390.0,112380.0,0.5179676]
[1757368904438,0.23966692,112390.0,112380.0,0.69179108]
[1757368904649,0.23966692,112390.0,112380.0,0.73348551]
[1757368904843,0.23966692,112390.0,112380.0,1.13348551]
[1757368905113,0.23966692,112390.0,112380.0,1.16018185]
[1757368905560,0.23966692,112390.0,112380.0,1.16118185]
[1757368906617,0.23966692,112390.0,112380.0,1.16318185]
[1757368907711,0.23966692,112390.0,112380.0,1.14667837]
[1757368922473,0.23966692,112390.0,112380.0,1.29441226]
[1757368926839,0.23966692,112390.0,112380.0,1.50785226]
[1757368927433,0.23966692,112390.0,112380.0,1.50772631]
[1757368928910,0.23966692,112390.0,112380.0,1.5996423]
[1757368930594,0.23966692,112390.0,112380.0,1.6174523]
[1757368930793,0.23966692,112390.0,112380.0,1.5996423]
[1757368933590,0.23966692,112390.0,112380.0,1.4454823]
[1757368933829,0.23966692,112390.0,112380.0,1.17572466]
[1757368934054,0.23966692,112390.0,112380.0,1.50689226]
[1757368934278,0.23966692,112390.0,112380.0,1.32892466]
[1757368935006,0.24166692,112390.0,112380.0,0.79299023]
[1757368935250,0.85654247,112390.0,112380.0,0.61644]
[1757368935482,0.85654247,112390.0,112380.0,0.43796]
[1757368935725,0.8896719,112390.0,112380.0,0.28472]
[1757368935948,0.90204129,112390.0,112380.0,0.28472]
[1757368936185,0.90204129,112390.0,112380.0,0.43796]
[1757368936699,0.90204129,112390.0,112380.0,0.43696]
[1757368936940,0.5602735,112390.0,112380.0,0.43696]
[1757368937161,0.5602735,112390.0,112380.0,0.43693]
[1757368937162,0.33358291,112390.0,112380.0,0.43693]
[1757368937376,0.33358291,112390.0,112380.0,0.43989]
[1757368937602,0.33158291,112390.0,112380.0,0.52089]
[1757368937838,0.33358291,112390.0,112380.0,0.52089]
[1757368938081,0.23966692,112390.0,112380.0,0.52089]
[1757368938315,0.23966692,112390.0,112380.0,1.28077359]
[1757368938550,0.23966692,112390.0,112380.0,1.3074692]
[1757368939461,0.23966692,112390.0,112380.0,1.7074692]
[1757368939936,0.23966692,112390.0,112380.0,1.78692309]
[1757368940171,0.23966692,112390.0,112380.0,2.03233383]
[1757368940403,0.23966692,112390.0,112380.0,2.19345046]
[1757368940873,0.23966692,112390.0,112380.0,2.19245046]
[1757368941102,0.23966692,112390.0,112380.0,2.14445046]
[1757368941334,0.23966692,112390.0,112380.0,2.19345046]
[1757368941589,0.23966692,112390.0,112380.0,2.16354465]
[1757368941799,0.23966692,112390.0,112380.0,2.14252465]
[1757368942025,0.23966692,112390.0,112380.0,1.96834583]
[1757368942244,0.23966692,112390.0,112380.0,2.12146583]
[1757368942493,0.23966692,112390.0,112380.0,0.9583681]
[1757368942745,0.23966692,112390.0,112380.0,1.43946561]
[1757368942979,0.23966692,112390.0,112380.0,1.44146561]
[1757368943336,0.24490692,112390.0,112380.0,0.9198]
[1757368943554,0.42285869,112390.0,112380.0,0.36472]
[1757368943765,0.42285869,112390.0,112380.0,0.52108]
[1757368943986,0.42285869,112390.0,112380.0,0.51808]
[1757368944665,0.42285869,112390.0,112380.0,0.51708]
[1757368945871,0.42285869,112390.0,112380.0,0.51508]
[1757368948101,0.42285869,112390.0,112380.0,0.91508]
[1757368948801,0.24490692,112390.0,112380.0,0.91508]
[1757368951194,0.42285869,112390.0,112380.0,0.91508]
[1757368951407,0.41961869,112390.0,112380.0,0.91705]
[1757368951619,0.42285869,112390.0,112380.0,0.91705]
[1757368951857,0.42285869,112390.0,112380.0,0.91508]
[1757368952323,0.4626577,112390.0,112380.0,0.91504]
[1757368953046,0.4626577,112390.0,112380.0,0.36172]
[1757368953047,0.89634148,112390.0,112380.0,0.36172]
[1757368953257,0.89634148,112390.0,112380.0,0.51496]
[1757368954090,0.55457369,112390.0,112380.0,0.43496]
[1757368954532,0.55557369,112390.0,112380.0,0.43496]
[1757368960569,0.89753924,112390.0,112380.0,0.43496]
[1757368961633,0.89753924,112390.0,112380.0,0.28172]
[1757368961634,0.91847806,112390.0,112380.0,0.28172]
[1757368961847,0.91847806,112390.0,112380.0,0.43496]
[1757368963033,0.94296806,112390.0,112380.0,0.43496]
[1757368965465,0.60100251,112390.0,112380.0,0.43496]
[1757368966827,0.94296806,112390.0,112380.0,0.06828]
[1757368967062,1.62493361,112390.0,112380.0,0.22172]
[1757368967292,0.94100251,112390.0,112380.0,0.22172]
[1757368967770,1.28196806,112390.0,112380.0,0.22172]
[1757368967990,1.28196806,112390.0,112380.0,0.2226]
[1757368968205,1.7168496,112390.0,112380.0,0.2226]
[1757368968414,1.37388405,112390.0,112380.0,0.2226]
[1757368968627,1.37688405,112390.0,112380.0,0.2226]
[1757368968858,1.28496806,112390.0,112380.0,0.2226]
[1757368969061,1.28196806,112390.0,112380.0,0.2226]
[1757368969270,1.28596806,112390.0,112380.0,0.2226]
[1757368969689,0.94400251,112390.0,112380.0,0.2226]
[1757368969892,0.92447806,112390.0,112380.0,0.2226]
[1757368970095,0.92447806,112390.0,112380.0,0.3026]
[1757368970344,0.58251251,112390.0,112380.0,0.3026]
[1757368970560,0.55757369,112390.0,112380.0,0.3026]
[1757368972313,0.90453924,112390.0,112380.0,0.3026]
[1757368972533,0.56257369,112390.0,112380.0,0.3026]
[1757368972777,0.90453924,112390.0,112380.0,0.3026]
[1757368972989,0.99954917,112390.0,112380.0,0.14828]
[1757368973230,1.02207362,112390.0,112380.0,0.30392]
[1757368973642,1.28996806,112390.0,112380.0,0.30392]
[1757368975530,1.28996806,112390.0,112380.0,0.14828]
[1757368975768,1.28996806,112390.0,112380.0,0.30424]
[1757368976381,1.28996806,112390.0,112380.0,0.14828]
[1757368976592,1.28996806,112390.0,112380.0,0.30432]
[1757368977122,1.38188405,112390.0,112380.0,0.30432]
[1757368977536,1.38188405,112390.0,112380.0,0.30436]
[1757368977946,0.52277468,112390.0,112380.0,0.30436]
[1757368979218,0.86474023,112390.0,112380.0,0.30464]
[1757368979426,0.88567905,112390.0,112380.0,0.3048]
[1757368979780,0.88567905,112390.0,112380.0,0.14828]
[1757368980015,0.88567905,112390.0,112380.0,0.30504]
[1757368980449,0.5437135,112390.0,112380.0,0.30504]
[1757368980674,0.88567905,112390.0,112380.0,0.30504]
[1757368981107,0.5437135,112390.0,112380.0,0.30504]
[1757368981321,0.52277468,112390.0,112380.0,0.30504]
[1757368982272,0.56276578,112390.0,112380.0,0.30504]
[1757368983151,0.24766692,112390.0,112380.0,0.30995]
[1757368983631,0.24766692,112390.0,112380.0,0.8279176]
[1757368984092,0.24766692,112390.0,112380.0,0.90722009]
[1757368984093,0.24266692,112390.0,112380.0,0.90722009]
[1757368984328,0.24266692,112390.0,112380.0,1.06983359]
[1757368984576,0.24066692,112390.0,112380.0,1.14913608]
[1757368984827,0.23966692,112390.0,112380.0,1.14913608]
[1757368985073,0.24166692,112390.0,112380.0,1.14913608]
[1757368985313,0.24166692,112390.0,112380.0,1.06983359]
[1757368985553,0.23966692,112390.0,112380.0,1.31307359]
[1757368985794,0.23966692,112390.0,112380.0,1.47195359]
[1757368986311,0.23966692,112390.0,112380.0,1.31307359]
[1757368986562,0.23966692,112390.0,112380.0,1.47195359]
[1757368986795,0.23966692,112390.0,112380.0,1.47395359]
[1757368987019,0.23966692,112390.0,112380.0,1.47195359]
[1757368987261,0.23966692,112390.0,112380.0,1.47395359]
[1757368990067,0.23966692,112390.0,112380.0,1.74793359]
[1757368990284,0.0002,112400.0,112390.0,0.51795177]
[1757368990518,0.0002,112400.0,112390.0,0.61308776]
[1757368990736,0.0002,112400.0,112390.0,0.77313776]
[1757368991166,0.0002,112400.0,112390.0,1.17313776]
[1757368992034,0.02772759,112420.0,112410.0,0.66792011]
[1757368992274,0.02772759,112420.0,112410.0,1.4560761]
[1757368992275,0.0278661,112420.0,112410.0,1.4560761]
[1757368992501,0.0278661,112420.0,112410.0,1.3029061]
[1757368992713,0.0278661,112420.0,112410.0,1.47032232]
[1757368993603,0.0278661,112420.0,112410.0,1.87032232]
[1757368994042,0.0278661,112420.0,112410.0,1.87028232]
[1757368994261,0.0278661,112420.0,112410.0,1.71192232]
[1757368994513,0.0278661,112420.0,112410.0,1.87132232]
[1757368994964,0.0278661,112420.0,112410.0,1.87232232]
[1757368998296,0.0278661,112420.0,112410.0,1.71392232]
[1757368998758,0.0278661,112420.0,112410.0,1.87256232]
[1757368999589,0.0278661,112420.0,112410.0,1.44408622]
[1757368999800,0.0278661,112420.0,112410.0,1.78056633]
[1757369001864,0.0278661,112420.0,112410.0,1.87248232]
[1757369003536,0.0278661,112420.0,112410.0,1.71392232]
[1757369003746,0.0278661,112420.0,112410.0,1.87260232]
[1757369004622,0.0278661,112420.0,112410.0,1.69464221]
[1757369004850,0.0278661,112420.0,112410.0,1.87256232]
[1757369005484,0.0278661,112420.0,112410.0,1.69464221]
[1757369005690,0.0278661,112420.0,112410.0,1.53600221]
[1757369005929,0.0278661,112420.0,112410.0,1.60280622]
[1757369006558,0.0278661,112420.0,112410.0,1.60288622]
[1757369006769,0.0298561,112420.0,112410.0,1.44982622]
[1757369006983,0.0298561,112420.0,112410.0,1.44990622]
[1757369007206,0.0278661,112420.0,112410.0,1.44990622]
[1757369007509,0.0278661,112420.0,112410.0,1.45312622]
[1757369007831,0.0298561,112420.0,112410.0,1.44990622]
[1757369008511,0.0298561,112420.0,112410.0,1.45312622]
[1757369008833,0.0298561,112420.0,112410.0,1.44793622]
[1757369009040,0.0330761,112420.0,112410.0,0.93988]
[1757369009247,0.0330761,112420.0,112410.0,1.09904]
[1757369010168,0.0330761,112420.0,112410.0,1.09804]
[1757369010375,0.0330761,112420.0,112410.0,1.10001]
[1757369010580,0.0340761,112420.0,112410.0,1.09804]
[1757369011025,0.0340761,112420.0,112410.0,1.09704]
[1757369011481,0.21198038,112420.0,112410.0,1.09704]
[1757369011707,0.21198038,112420.0,112410.0,0.93788]
[1757369011933,0.21198038,112420.0,112410.0,1.09696]
[1757369011934,0.30389637,112420.0,112410.0,1.09696]
[1757369012179,0.30389637,112420.0,112410.0,0.69696]
[1757369012652,0.30389637,112420.0,112410.0,1.09696]
[1757369013113,0.68053563,112420.0,112410.0,0.28172]
[1757369013351,0.68053563,112420.0,112410.0,0.441]
[1757369013864,0.32483519,112420.0,112410.0,0.441]
[1757369014527,0.66662355,112420.0,112410.0,0.441]
[1757369015802,0.32483519,112420.0,112410.0,0.441]
[1757369016022,0.32483519,112420.0,112410.0,0.44297]
[1757369016023,0.30389637,112420.0,112410.0,0.44297]
[1757369016246,0.64568473,112420.0,112410.0,0.441]
[1757369016476,0.30389637,112420.0,112410.0,0.441]
[1757369018037,0.64568473,112420.0,112410.0,0.441]
[1757369018245,0.64568473,112420.0,112410.0,0.28172]
[1757369018468,0.64568473,112420.0,112410.0,0.4412]
[1757369019322,1.00841191,112420.0,112410.0,0.28172]
[1757369019540,1.03258191,112420.0,112410.0,0.44116]
[1757369019775,1.37258191,112420.0,112410.0,0.28172]
[1757369019996,1.37258191,112420.0,112410.0,0.44144]
[1757369020205,1.71437027,112420.0,112410.0,0.44144]
[1757369020457,1.46375462,112420.0,112410.0,0.44144]
[1757369020666,1.46675462,112420.0,112410.0,0.44144]
[1757369021073,1.46375462,112420.0,112410.0,0.44144]
[1757369021314,1.46975462,112420.0,112410.0,0.44144]
[1757369021532,1.47850379,112420.0,112410.0,0.44144]
[1757369021753,1.47750379,112420.0,112410.0,0.28172]
[1757369021966,1.47750379,112420.0,112410.0,0.228]
[1757369022180,1.47950379,112420.0,112410.0,0.228]
[1757369022392,1.47950379,112420.0,112410.0,0.06828]
[1757369022615,1.47950379,112420.0,112410.0,1e-08]
[1757369022877,1.50620723,112420.0,112410.0,1e-08]
[1757369023553,0.53885893,112410.0,112400.0,0.06828]
[1757369023762,1.40652435,112410.0,112400.0,0.06828]
[1757369023970,1.43417435,112410.0,112400.0,0.22824]
[1757369024163,1.43621435,112410.0,112400.0,0.22824]
[1757369024364,1.43621435,112410.0,112400.0,0.06828]
[1757369024603,1.43621435,112410.0,112400.0,0.22832]
[1757369024825,1.43821435,112410.0,112400.0,0.22832]
[1757369025045,1.44221435,112410.0,112400.0,0.22832]
[1757369026510,1.34630579,112410.0,112400.0,0.22832]
[1757369029132,0.79883304,112410.0,112400.0,0.22832]
[1757369029337,1.34630579,112410.0,112400.0,0.22832]
[1757369032156,1.34630579,112410.0,112400.0,0.30832]
[1757369039358,1.78570579,112410.0,112400.0,0.30832]
[1757369040337,1.6937898,112410.0,112400.0,0.30832]
[1757369041345,1.14631705,112410.0,112400.0,0.30832]
[1757369041574,1.6937898,112410.0,112400.0,0.30832]
[1757369042498,1.6937898,112410.0,112400.0,0.14828]
[1757369042716,1.6937898,112410.0,112400.0,0.30856]
[1757369042936,1.78570579,112410.0,112400.0,0.14828]
[1757369043157,1.78570579,112410.0,112400.0,0.30868]
[1757369043789,1.78570579,112410.0,112400.0,0.14828]
[1757369044007,1.78570579,112410.0,112400.0,0.30872]
[1757369044226,1.78570579,112410.0,112400.0,0.30864]
[1757369044439,1.78570579,112410.0,112400.0,0.14828]
[1757369045092,0.1779676,112380.0,112370.0,0.07061212]
[1757369045356,0.86939171,112380.0,112370.0,0.13893212]
[1757369045588,0.86798516,112380.0,112370.0,0.29933212]
[1757369045892,0.89629863,112380.0,112370.0,0.06832]
[1757369045950,1.20798516,112380.0,112370.0,0.06832]
[1757369046294,1.20798516,112380.0,112370.0,0.2288]
[1757369046502,1.34489445,112380.0,112370.0,0.2298]
[1757369046939,1.34489445,112380.0,112370.0,0.2288]
[1757369047146,1.43681044,112380.0,112370.0,0.2288]
[1757369047384,1.43881044,112380.0,112370.0,0.2288]
[1757369048042,1.34689445,112380.0,112370.0,0.2308]
[1757369048266,1.34689445,112380.0,112370.0,0.2288]
[1757369048728,1.34789445,112380.0,112370.0,0.2288]
[1757369049411,1.04543395,112380.0,112370.0,0.2288]
[1757369051065,1.38762497,112380.0,112370.0,0.2288]
[1757369051272,1.47954096,112380.0,112370.0,0.2288]
[1757369052130,1.47954096,112380.0,112370.0,0.06832]
[1757369052365,1.47954096,112380.0,112370.0,0.22844]
[1757369055070,1.47954096,112380.0,112370.0,0.22808]
[1757369055974,1.47954096,112380.0,112370.0,0.06832]
[1757369056240,1.47954096,112380.0,112370.0,0.22808]
[1757369056561,1.47954096,112380.0,112370.0,0.06832]
[1757369056791,1.47954096,112380.0,112370.0,0.228]
[1757369057824,1.47954096,112380.0,112370.0,0.06832]
[1757369058029,1.47954096,112380.0,112370.0,0.22796]
[1757369058900,1.04543395,112380.0,112370.0,0.22796]
[1757369059536,1.04543395,112380.0,112370.0,0.22772]
[1757369060777,1.04543395,112380.0,112370.0,0.06832]
[1757369060970,1.04543395,112380.0,112370.0,0.2276]
[1757369061650,0.70324293,112380.0,112370.0,0.2276]
[1757369061856,1.13355478,112380.0,112370.0,0.2276]
[1757369062203,0.79136376,112380.0,112370.0,0.2276]
[1757369062420,1.4757458,112380.0,112370.0,0.2276]
[1757369062846,1.4757458,112380.0,112370.0,0.06832]
[1757369063045,1.4757458,112380.0,112370.0,0.22748]
[1757369066087,1.4757458,112380.0,112370.0,0.22716]
[1757369066401,0.79136376,112380.0,112370.0,0.22716]
[1757369066626,1.4757458,112380.0,112370.0,0.22716]
[1757369069380,1.13355478,112380.0,112370.0,0.22716]
[1757369071213,0.79136376,112380.0,112370.0,0.22716]
[1757369071606,1.13355478,112380.0,112370.0,0.22716]
[1757369075633,0.1989381,112360.0,112350.0,0.06832]
[1757369075867,0.33744757,112360.0,112350.0,0.22648]
[1757369076098,0.30503405,112360.0,112350.0,0.22648]
[1757369077031,0.30503405,112360.0,112350.0,0.22748]
[1757369077454,0.30503405,112360.0,112350.0,0.06932]
[1757369077711,0.30503405,112360.0,112350.0,0.22736]
[1757369077896,0.73205129,112360.0,112350.0,0.22936]
[1757369078124,0.74092756,112360.0,112350.0,0.22936]
[1757369078561,0.74092756,112360.0,112350.0,0.2292]
[1757369078684,0.39873654,112360.0,112350.0,0.2292]
[1757369078908,0.74092756,112360.0,112350.0,0.07132]
[1757369079143,1.10396756,112360.0,112350.0,0.22808]
[1757369079360,0.76177654,112360.0,112350.0,0.22808]
[1757369079586,1.10396756,112360.0,112350.0,0.22908]
[1757369080247,1.10396756,112360.0,112350.0,0.22808]
[1757369080462,1.09510092,112360.0,112350.0,0.22808]
[1757369080682,0.64503405,112360.0,112350.0,0.22608]
[1757369080909,0.64503405,112360.0,112350.0,0.22708]
[1757369081267,0.65383234,112360.0,112350.0,0.22708]
[1757369082294,0.64494505,112360.0,112350.0,0.22708]
[1757369084373,0.65368029,112360.0,112350.0,0.22708]
[1757369084688,0.64494505,112360.0,112350.0,0.22708]
[1757369085187,0.9871457,112360.0,112350.0,0.22708]
[1757369087824,0.99597787,112360.0,112350.0,0.22708]
[1757369090231,0.9871457,112360.0,112350.0,0.22708]
[1757369091180,1.07906169,112360.0,112350.0,0.22708]
[1757369091879,0.9871457,112360.0,112350.0,0.22708]
[1757369092304,0.99596988,112360.0,112350.0,0.22708]
[1757369095886,0.9871457,112360.0,112350.0,0.22708]
[1757369096361,0.9871457,112360.0,112350.0,0.226]
[1757369097293,0.99595744,112360.0,112350.0,0.226]
[1757369098224,1.08787343,112360.0,112350.0,0.226]
[1757369099994,0.73686104,112360.0,112350.0,0.226]
[1757369100202,1.07906169,112360.0,112350.0,0.226]
[1757369100762,0.64494505,112360.0,112350.0,0.226]
[1757369100978,0.65374183,112360.0,112350.0,0.226]
[1757369101216,0.64494505,112360.0,112350.0,0.226]
[1757369101626,0.9871457,112360.0,112350.0,0.226]
[1757369102169,0.99585456,112360.0,112350.0,0.226]
[1757369102392,0.9871457,112360.0,112350.0,0.226]
[1757369102610,0.64494505,112360.0,112350.0,0.226]
[1757369102781,0.9871457,112360.0,112350.0,0.226]
[1757369103269,0.64494505,112360.0,112350.0,0.226]
[1757369106210,0.62400623,112360.0,112350.0,0.226]
[1757369106429,0.62400623,112360.0,112350.0,0.23093]
[1757369106430,0.27872623,112360.0,112350.0,0.23093]
[1757369106884,0.27872623,112360.0,112350.0,0.31093]
[1757369107170,0.28407623,112360.0,112350.0,0.306]
[1757369110752,0.28407623,112360.0,112350.0,0.30796]
[1757369116461,0.28407623,112360.0,112350.0,0.306]
[1757369117119,0.28407623,112360.0,112350.0,0.30796]
[1757369117331,0.27872623,112360.0,112350.0,0.31104]
[1757369120280,0.28088623,112360.0,112350.0,0.15128]
[1757369120503,0.28393623,112360.0,112350.0,0.14932]
[1757369120695,0.28393623,112360.0,112350.0,0.30452]
[1757369122616,0.28393623,112360.0,112350.0,0.14932]
[1757369122828,0.28393623,112360.0,112350.0,0.30452]
[1757369125077,0.28393623,112360.0,112350.0,0.14932]
[1757369125305,0.28393623,112360.0,112350.0,0.30424]
[1757369127397,0.28393623,112360.0,112350.0,0.14932]
[1757369127607,0.28393623,112360.0,112350.0,0.30408]
[1757369128345,0.28393623,112360.0,112350.0,0.14932]
[1757369128545,0.28393623,112360.0,112350.0,0.30404]
[1757369130715,0.58393623,112360.0,112350.0,0.30404]
[1757369132334,1.38119234,112360.0,112350.0,0.14932]
[1757369132524,1.74498234,112360.0,112350.0,0.22376]
[1757369132976,1.77169615,112360.0,112350.0,0.22376]
[1757369139857,1.08729485,112360.0,112350.0,0.22376]
[1757369140077,1.31378951,112360.0,112350.0,0.06932]
[1757369140290,1.31378951,112360.0,112350.0,0.22336]
[1757369141313,0.97158886,112360.0,112350.0,0.22336]
[1757369141526,1.31378951,112360.0,112350.0,0.22336]
[1757369142444,1.31377692,112360.0,112350.0,0.22336]
[1757369143621,1.40266816,112360.0,112350.0,0.22336]
[1757369144091,1.42607816,112360.0,112350.0,0.22336]
[1757369144946,1.0838901,112360.0,112350.0,0.22336]
[1757369145401,0.99499886,112360.0,112350.0,0.22336]
[1757369151488,0.99499886,112360.0,112350.0,0.22284]
[1757369151929,0.99499886,112360.0,112350.0,0.2228]
[1757369152604,0.9557468,112360.0,112350.0,0.2228]
[1757369154210,1.29793486,112360.0,112350.0,0.2228]
[1757369157251,0.9557468,112360.0,112350.0,0.2228]
[1757369159388,1.29793486,112360.0,112350.0,0.2228]
[1757369160921,0.9557468,112360.0,112350.0,0.2228]
[1757369161130,1.29793486,112360.0,112350.0,0.2228]
[1757369162566,1.29793486,112360.0,112350.0,0.06932]
[1757369162780,1.29793486,112360.0,112350.0,0.22232]
[1757369163931,1.38307232,112360.0,112350.0,0.22232]
[1757369164144,1.29793486,112360.0,112350.0,0.22232]
[1757369165940,1.29793486,112360.0,112350.0,0.06932]